fUSD/lending_fUSD_20260607
["ID","MTS","AMOUNT","RATE_DAILY","PERIOD"]
[424314329,1780763440000,-500.0,0.00013698,2]
[424314330,1780763440000,-500.0,0.00013698,2]
[424314331,1780763440000,-500.0,0.00013698,2]
[424314332,1780763440000,-500.0,0.00013698,2]
[424314333,1780763440000,-500.0,0.00013698,2]
[424314335,1780763440000,-500.0,0.00013698,2]
[424314337,1780763440000,-500.0,0.00013698,2]
[424314336,1780763440000,-500.0,0.00013698,2]
[424314334,1780763440000,-500.0,0.00013698,2]
[424314338,1780763440000,-500.0,0.00013698,2]
[424314339,1780763440000,-500.0,0.00013698,2]
[424314277,1780763440000,-500.0,0.00013698,2]
[424314311,1780763440000,-500.0,0.00013698,2]
[424314307,1780763440000,-500.0,0.00013698,2]
[424314321,1780763440000,-500.0,0.00013698,2]
[424314306,1780763440000,-500.0,0.00013698,2]
[424314313,1780763440000,-500.0,0.00013698,2]
[424314283,1780763440000,-500.0,0.00013698,2]
[424314282,1780763440000,-500.0,0.00013698,2]
[424314285,1780763440000,-500.0,0.00013698,2]
[424314284,1780763440000,-500.0,0.00013698,2]
[424314290,1780763440000,-500.0,0.00013698,2]
[424314286,1780763440000,-500.0,0.00013698,2]
[424314287,1780763440000,-500.0,0.00013698,2]
[424314288,1780763440000,-500.0,0.00013698,2]
[424314289,1780763440000,-500.0,0.00013698,2]
[424314291,1780763440000,-500.0,0.00013698,2]
[424314293,1780763440000,-500.0,0.00013698,2]
[424314303,1780763440000,-500.0,0.00013698,2]
[424314302,1780763440000,-500.0,0.00013698,2]
[424314280,1780763440000,-500.0,0.00013698,2]
[424314294,1780763440000,-500.0,0.00013698,2]
[424314292,1780763440000,-500.0,0.00013698,2]
[424314304,1780763440000,-500.0,0.00013698,2]
[424314316,1780763440000,-500.0,0.00013698,2]
[424314315,1780763440000,-500.0,0.00013698,2]
[424314305,1780763440000,-500.0,0.00013698,2]
[424314301,1780763440000,-500.0,0.00013698,2]
[424314308,1780763440000,-500.0,0.00013698,2]
[424314299,1780763440000,-500.0,0.00013698,2]
[424314300,1780763440000,-500.0,0.00013698,2]
[424314298,1780763440000,-500.0,0.00013698,2]
[424314296,1780763440000,-500.0,0.00013698,2]
[424314295,1780763440000,-500.0,0.00013698,2]
[424314297,1780763440000,-500.0,0.00013698,2]
[424314381,1780763441000,-500.0,0.00013698,2]
[424314391,1780763441000,-162.71193955,0.00013698,2]
[424314395,1780763441000,-500.0,0.00013698,2]
[424314377,1780763441000,-500.0,0.00013698,2]
[424314378,1780763441000,-500.0,0.00013698,2]
[424314379,1780763441000,-500.0,0.00013698,2]
[424314389,1780763441000,-500.0,0.00013698,2]
[424314376,1780763441000,-500.0,0.00013698,2]
[424314375,1780763441000,-500.0,0.00013698,2]
[424314374,1780763441000,-500.0,0.00013698,2]
[424314383,1780763441000,-500.0,0.00013698,2]
[424314393,1780763441000,-500.0,0.00013698,2]
[424314397,1780763441000,-593.82,0.00013698,2]
[424314399,1780763441000,-593.82,0.00013698,2]
[424314380,1780763441000,-500.0,0.00013698,2]
[424314387,1780763441000,-500.0,0.00013698,2]
[424314403,1780763441000,-593.82,0.00013698,2]
[424314409,1780763441000,-593.82,0.00013698,2]
[424314401,1780763441000,-593.82,0.00013698,2]
[424314411,1780763441000,-593.82,0.00013698,2]
[424314419,1780763441000,-593.82,0.00013698,2]
[424314423,1780763441000,-593.82,0.00013698,2]
[424314421,1780763441000,-593.82,0.00013698,2]
[424314413,1780763441000,-593.82,0.00013698,2]
[424314415,1780763441000,-593.82,0.00013698,2]
[424314407,1780763441000,-593.82,0.00013698,2]
[424314368,1780763441000,-500.0,0.00013698,2]
[424314385,1780763441000,-500.0,0.00013698,2]
[424314372,1780763441000,-500.0,0.00013698,2]
[424314417,1780763441000,-593.82,0.00013698,2]
[424314369,1780763441000,-500.0,0.00013698,2]
[424314340,1780763441000,-500.0,0.00013698,2]
[424314344,1780763441000,-500.0,0.00013698,2]
[424314343,1780763441000,-500.0,0.00013698,2]
[424314345,1780763441000,-500.0,0.00013698,2]
[424314346,1780763441000,-500.0,0.00013698,2]
[424314342,1780763441000,-500.0,0.00013698,2]
[424314351,1780763441000,-500.0,0.00013698,2]
[424314349,1780763441000,-500.0,0.00013698,2]
[424314350,1780763441000,-500.0,0.00013698,2]
[424314348,1780763441000,-500.0,0.00013698,2]
[424314347,1780763441000,-500.0,0.00013698,2]
[424314341,1780763441000,-500.0,0.00013698,2]
[424314353,1780763441000,-500.0,0.00013698,2]
[424314367,1780763441000,-500.0,0.00013698,2]
[424314363,1780763441000,-500.0,0.00013698,2]
[424314358,1780763441000,-500.0,0.00013698,2]
[424314354,1780763441000,-500.0,0.00013698,2]
[424314355,1780763441000,-500.0,0.00013698,2]
[424314365,1780763441000,-500.0,0.00013698,2]
[424314356,1780763441000,-500.0,0.00013698,2]
[424314352,1780763441000,-500.0,0.00013698,2]
[424314361,1780763441000,-500.0,0.00013698,2]
[424314364,1780763441000,-500.0,0.00013698,2]
[424314357,1780763441000,-500.0,0.00013698,2]
[424314366,1780763441000,-500.0,0.00013698,2]
[424314370,1780763441000,-500.0,0.00013698,2]
[424314371,1780763441000,-500.0,0.00013698,2]
[424314373,1780763441000,-500.0,0.00013698,2]
[424314359,1780763441000,-500.0,0.00013698,2]
[424314425,1780763441000,-593.82,0.00013698,2]
[424314405,1780763441000,-593.82,0.00013698,2]
[424314429,1780763441000,-593.82,0.00013698,2]
[424314483,1780763441000,-500.0,0.00013699,2]
[424314497,1780763441000,-500.0,0.00013699,2]
[424314499,1780763441000,-500.0,0.00013699,2]
[424314501,1780763441000,-500.0,0.00013699,2]
[424314503,1780763441000,-500.0,0.00013699,2]
[424314517,1780763441000,-500.0,0.00013699,2]
[424314519,1780763441000,-500.0,0.00013699,2]
[424314505,1780763441000,-500.0,0.00013699,2]
[424314521,1780763441000,-500.0,0.00013699,2]
[424314524,1780763441000,-500.0,0.00013699,2]
[424314507,1780763441000,-500.0,0.00013699,2]
[424314528,1780763441000,-500.0,0.00013699,2]
[424314515,1780763441000,-500.0,0.00013699,2]
[424314487,1780763441000,-500.0,0.00013699,2]
[424314526,1780763441000,-500.0,0.00013699,2]
[424314509,1780763441000,-500.0,0.00013699,2]
[424314511,1780763441000,-500.0,0.00013699,2]
[424314530,1780763441000,-500.0,0.00013699,2]
[424314534,1780763441000,-500.0,0.00013699,2]
[424314532,1780763441000,-500.0,0.00013699,2]
[424314536,1780763441000,-500.0,0.00013699,2]
[424314538,1780763441000,-500.0,0.00013699,2]
[424314540,1780763441000,-500.0,0.00013699,2]
[424314544,1780763441000,-500.0,0.00013699,2]
[424314542,1780763441000,-500.0,0.00013699,2]
[424314547,1780763441000,-500.0,0.00013699,2]
[424314549,1780763441000,-500.0,0.00013699,2]
[424314427,1780763441000,-593.82,0.00013698,2]
[424314513,1780763441000,-500.0,0.00013699,2]
[424314481,1780763441000,-500.0,0.00013699,2]
[424314551,1780763441000,-500.0,0.00013699,2]
[424314491,1780763441000,-500.0,0.00013699,2]
[424314437,1780763441000,-593.82,0.00013698,2]
[424314433,1780763441000,-593.82,0.00013698,2]
[424314431,1780763441000,-593.82,0.00013698,2]
[424314441,1780763441000,-593.82,0.00013698,2]
[424314553,1780763441000,-368.84438902,0.00013699,2]
[424314439,1780763441000,-593.82,0.00013698,2]
[424314443,1780763441000,-594.03,0.00013698,2]
[424314445,1780763441000,-166.66,0.00013699,2]
[424314485,1780763441000,-500.0,0.00013699,2]
[424314435,1780763441000,-593.82,0.00013698,2]
[424314447,1780763441000,-721.84,0.00013699,2]
[424314451,1780763441000,-506.68,0.00013699,2]
[424314453,1780763441000,-2500.0,0.00013699,2]
[424314465,1780763441000,-500.0,0.00013699,2]
[424314449,1780763441000,-500.0,0.00013699,2]
[424314467,1780763441000,-500.0,0.00013699,2]
[424314495,1780763441000,-500.0,0.00013699,2]
[424314471,1780763441000,-500.0,0.00013699,2]
[424314493,1780763441000,-500.0,0.00013699,2]
[424314489,1780763441000,-500.0,0.00013699,2]
[424314479,1780763441000,-500.0,0.00013699,2]
[424314477,1780763441000,-500.0,0.00013699,2]
[424314475,1780763441000,-500.0,0.00013699,2]
[424314459,1780763441000,-282.28619146,0.00013699,10]
[424314461,1780763441000,-2000.0,0.00013699,7]
[424314455,1780763441000,-200.0,0.00013699,2]
[424314457,1780763441000,-282.28619146,0.00013699,10]
[424314469,1780763441000,-500.0,0.00013699,2]
[424314463,1780763441000,-612.71852061,0.00013699,2]
[424314473,1780763441000,-500.0,0.00013699,2]
[424314636,1780763442000,-516.14280082,0.00013806,2]
[424314644,1780763442000,-150.0,0.00013823,2]
[424314642,1780763442000,-516.14280082,0.00013821,2]
[424314638,1780763442000,-150.0,0.00013809,2]
[424314634,1780763442000,-150.0,0.00013803,2]
[424314618,1780763442000,-516.14280082,0.00013775,2]
[424314628,1780763442000,-516.14280082,0.0001379,2]
[424314626,1780763442000,-150.0,0.00013787,2]
[424314630,1780763442000,-150.0,0.00013794,2]
[424314624,1780763442000,-150.0,0.00013783,2]
[424314622,1780763442000,-150.0,0.00013778,2]
[424314632,1780763442000,-150.0,0.00013798,2]
[424314646,1780763442000,-150.0,0.00013824,2]
[424314667,1780763442000,-150.0,0.00013857,2]
[424314648,1780763442000,-150.0,0.00013834,2]
[424314654,1780763442000,-150.0,0.00013839,2]
[424314652,1780763442000,-516.14280082,0.00013836,2]
[424314650,1780763442000,-166.66,0.00013836,2]
[424314656,1780763442000,-200.0,0.00013842,2]
[424314658,1780763442000,-150.0,0.00013843,2]
[424314671,1780763442000,-516.14280082,0.00013866,2]
[424314660,1780763442000,-150.0,0.00013849,2]
[424314673,1780763442000,-150.0,0.0001387,2]
[424314676,1780763442000,-150.0,0.0001388,2]
[424314663,1780763442000,-516.14280082,0.00013851,2]
[424314665,1780763442000,-150.0,0.00013855,2]
[424314616,1780763442000,-150.0,0.00013764,2]
[424314640,1780763442000,-150.0,0.0001381,2]
[424314620,1780763442000,-252.84,0.00013777,2]
[424314585,1780763442000,-516.14280082,0.00013715,2]
[424314614,1780763442000,-150.0,0.00013764,2]
[424314678,1780763442000,-516.14280082,0.00013881,2]
[424314557,1780763442000,-500.0,0.00013699,2]
[424314555,1780763442000,-500.0,0.00013699,2]
[424314558,1780763442000,-500.0,0.00013699,2]
[424314575,1780763442000,-150.0,0.00013702,2]
[424314571,1780763442000,-278.0328432,0.000137,2]
[424314577,1780763442000,-150.0,0.00013705,2]
[424314573,1780763442000,-1532.08,0.000137,2]
[424314561,1780763442000,-500.0,0.00013699,2]
[424314565,1780763442000,-516.14280082,0.000137,2]
[424314567,1780763442000,-150.0,0.000137,2]
[424314563,1780763442000,-500.0,0.00013699,2]
[424314579,1780763442000,-1356.73267512,0.00013705,2]
[424314581,1780763442000,-200.0,0.00013705,2]
[424314583,1780763442000,-227.18936854,0.00013705,10]
[424314587,1780763442000,-150.0,0.00013717,2]
[424314589,1780763442000,-150.0,0.00013718,2]
[424314595,1780763442000,-150.0,0.00013732,2]
[424314600,1780763442000,-150.0,0.00013741,2]
[424314598,1780763442000,-150.0,0.00013737,2]
[424314593,1780763442000,-516.14280082,0.0001373,2]
[424314591,1780763442000,-150.0,0.00013724,2]
[424314604,1780763442000,-516.14280082,0.00013745,2]
[424314602,1780763442000,-150.0,0.00013744,2]
[424314606,1780763442000,-150.0,0.00013746,2]
[424314608,1780763442000,-150.0,0.00013748,2]
[424314612,1780763442000,-150.0,0.00013763,2]
[424314610,1780763442000,-516.14280082,0.0001376,2]
[424314669,1780763442000,-150.0,0.00013862,2]
[424314569,1780763442000,-150.0,0.000137,2]
[424314682,1780763442000,-150.0,0.00013885,2]
[424314750,1780763442000,-150.0,0.00013992,2]
[424314754,1780763442000,-10000.0,0.00013995,2]
[424314758,1780763442000,-2313.79356356,0.00014,2]
[424314756,1780763442000,-250.0,0.00014,2]
[424314760,1780763442000,-150.0,0.00014,2]
[424314761,1780763442000,-516.14280082,0.00014002,2]
[424314763,1780763442000,-150.0,0.00014004,2]
[424314765,1780763442000,-150.0,0.00014008,2]
[424314774,1780763442000,-150.0,0.00014018,2]
[424314769,1780763442000,-255.124506,0.00014013,2]
[424314777,1780763442000,-150.0,0.00014023,2]
[424314767,1780763442000,-352.27150535,0.0001401,2]
[424314781,1780763442000,-167.240153,0.00014033,2]
[424314779,1780763442000,-516.14280082,0.00014033,2]
[424314775,1780763442000,-150.0,0.0001402,2]
[424314771,1780763442000,-516.14280082,0.00014017,2]
[424314783,1780763442000,-150.0,0.00014038,2]
[424314785,1780763442000,-150.0,0.0001404,2]
[424314799,1780763442000,-150.0,0.00014064,2]
[424314804,1780763442000,-516.14280082,0.00014078,2]
[424314791,1780763442000,-150.0,0.00014053,2]
[424314801,1780763442000,-150.0,0.00014069,2]
[424314787,1780763442000,-150.0,0.00014041,2]
[424314795,1780763442000,-150.0,0.0001406,2]
[424314680,1780763442000,-150.0,0.00013882,2]
[424314793,1780763442000,-150.0,0.00014056,2]
[424314789,1780763442000,-516.14280082,0.00014048,2]
[424314744,1780763442000,-150.0,0.00013987,2]
[424314752,1780763442000,-150.0,0.00013995,2]
[424314797,1780763442000,-516.14280082,0.00014063,2]
[424314741,1780763442000,-150.0,0.00013987,2]
[424314737,1780763442000,-454.3787371,0.0001398,10]
[424314695,1780763442000,-516.14280082,0.00013912,2]
[424314689,1780763442000,-150.0,0.00013901,2]
[424314691,1780763442000,-150.0,0.00013902,2]
[424314698,1780763442000,-150.0,0.00013916,2]
[424314702,1780763442000,-150.0,0.00013926,2]
[424314700,1780763442000,-150.0,0.00013921,2]
[424314687,1780763442000,-150.0,0.00013901,2]
[424314693,1780763442000,-150.0,0.00013903,2]
[424314704,1780763442000,-516.14280082,0.00013927,2]
[424314706,1780763442000,-150.0,0.00013931,2]
[424314708,1780763442000,-150.0,0.00013941,2]
[424314710,1780763442000,-516.14280082,0.00013942,2]
[424314719,1780763442000,-516.14280082,0.00013957,2]
[424314684,1780763442000,-516.14280082,0.00013896,2]
[424314714,1780763442000,-150.0,0.00013949,2]
[424314725,1780763442000,-1104.32797224,0.00013967,2]
[424314739,1780763442000,-150.0,0.00013981,2]
[424314735,1780763442000,-200.0,0.0001398,2]
[424314727,1780763442000,-150.0,0.00013972,2]
[424314733,1780763442000,-150.0,0.00013977,2]
[424314748,1780763442000,-557.62342837,0.0001399,2]
[424314731,1780763442000,-166.66,0.00013973,2]
[424314721,1780763442000,-150.0,0.00013961,2]
[424314729,1780763442000,-516.14280082,0.00013972,2]
[424314746,1780763442000,-516.14280082,0.00013987,2]
[424314712,1780763442000,-150.0,0.00013946,2]
[424314723,1780763442000,-150.0,0.00013962,2]
[424314716,1780763442000,-150.0,0.00013953,2]
[424314883,1780763443000,-150.0,0.00014115,2]
[424314903,1780763443000,-150.0,0.00014156,2]
[424314885,1780763443000,-150.0,0.00014119,2]
[424314888,1780763443000,-200.0,0.0001412,2]
[424314893,1780763443000,-150.0,0.00014133,2]
[424314891,1780763443000,-150.0,0.0001413,2]
[424314895,1780763443000,-150.0,0.00014138,2]
[424314900,1780763443000,-150.0,0.00014145,2]
[424314898,1780763443000,-516.14280082,0.00014139,2]
[424314902,1780763443000,-516.14280082,0.00014154,2]
[424314889,1780763443000,-516.14280082,0.00014123,2]
[424314909,1780763443000,-150.0,0.00014161,2]
[424314913,1780763443000,-150.0,0.00014176,2]
[424314920,1780763443000,-516.14280082,0.00014184,2]
[424314918,1780763443000,-150.0,0.00014179,2]
[424314916,1780763443000,-150.0,0.00014178,2]
[424314907,1780763443000,-150.0,0.00014159,2]
[424314911,1780763443000,-516.14280082,0.00014169,2]
[424314922,1780763443000,-150.0,0.00014191,2]
[424314924,1780763443000,-150.0,0.00014198,2]
[424314926,1780763443000,-516.14280082,0.00014199,2]
[424314928,1780763443000,-150.0,0.00014202,2]
[424314935,1780763443000,-516.14280082,0.00014214,2]
[424314881,1780763443000,-150.0,0.0001411,2]
[424314905,1780763443000,-150.0,0.00014158,2]
[424314879,1780763443000,-166.66,0.0001411,2]
[424314832,1780763443000,-500.0,0.00014094,2]
[424314874,1780763443000,-321.29,0.000141,2]
[424314806,1780763443000,-150.0,0.00014079,2]
[424314808,1780763443000,-500.0,0.00014081,2]
[424314810,1780763443000,-500.0,0.00014081,2]
[424314812,1780763443000,-287.01,0.00014081,2]
[424314814,1780763443000,-150.0,0.00014084,2]
[424314818,1780763443000,-516.14280082,0.00014093,2]
[424314823,1780763443000,-500.0,0.00014094,2]
[424314816,1780763443000,-150.0,0.00014087,2]
[424314820,1780763443000,-500.0,0.00014094,2]
[424314828,1780763443000,-500.0,0.00014094,2]
[424314826,1780763443000,-500.0,0.00014094,2]
[424314824,1780763443000,-500.0,0.00014094,2]
[424314830,1780763443000,-500.0,0.00014094,2]
[424314835,1780763443000,-500.0,0.00014094,2]
[424314837,1780763443000,-500.0,0.00014094,2]
[424314840,1780763443000,-500.0,0.00014094,2]
[424314844,1780763443000,-500.0,0.00014094,2]
[424314846,1780763443000,-500.0,0.00014094,2]
[424314848,1780763443000,-332.46,0.00014094,2]
[424314842,1780763443000,-500.0,0.00014094,2]
[424314863,1780763443000,-500.0,0.00014094,2]
[424314868,1780763443000,-150.0,0.00014099,2]
[424314866,1780763443000,-502.60698741,0.00014094,2]
[424314872,1780763443000,-150.0,0.00014099,2]
[424314876,1780763443000,-150.0,0.00014108,2]
[424314878,1780763443000,-516.14280082,0.00014108,2]
[424314952,1780763443000,-166.66,0.00014247,2]
[424314950,1780763443000,-516.14280082,0.00014245,2]
[424314937,1780763443000,-150.0,0.00014217,2]
[424314991,1780763443000,-150.0,0.00014318,2]
[424315009,1780763443000,-150.0,0.00014355,2]
[424315005,1780763443000,-516.14280082,0.00014351,2]
[424314993,1780763443000,-516.14280082,0.0001432,2]
[424315007,1780763443000,-160.8907078,0.00014355,2]
[424315003,1780763443000,-150.0,0.00014344,2]
[424315011,1780763443000,-150.0,0.00014364,2]
[424315021,1780763443000,-516.14280082,0.00014381,2]
[424315023,1780763443000,-166.66,0.00014384,2]
[424315025,1780763443000,-150.0,0.00014387,2]
[424315012,1780763443000,-516.14280082,0.00014366,2]
[424315027,1780763443000,-150.0,0.0001439,2]
[424315015,1780763443000,-150.0,0.00014375,2]
[424315013,1780763443000,-150.0,0.00014366,2]
[424315019,1780763443000,-152.0,0.00014377,2]
[424315017,1780763443000,-152.0,0.00014377,2]
[424315029,1780763443000,-150.0,0.00014395,2]
[424315014,1780763443000,-150.0,0.00014375,2]
[424315031,1780763443000,-516.14280082,0.00014396,2]
[424315033,1780763443000,-252.84,0.00014403,2]
[424315035,1780763443000,-150.0,0.00014405,2]
[424315037,1780763443000,-150.0,0.0001441,2]
[424315039,1780763443000,-516.14280082,0.00014411,2]
[424315042,1780763443000,-150.0,0.00014414,2]
[424314931,1780763443000,-150.0,0.00014206,2]
[424314987,1780763443000,-150.0,0.00014315,2]
[424315001,1780763443000,-150.0,0.00014341,2]
[424315010,1780763443000,-150.0,0.00014359,2]
[424314989,1780763443000,-150.0,0.00014316,2]
[424314956,1780763443000,-150.0,0.00014252,2]
[424314999,1780763443000,-150.0,0.00014336,2]
[424314944,1780763443000,-150.0,0.00014237,2]
[424314954,1780763443000,-150.0,0.00014249,2]
[424314940,1780763443000,-150.0,0.00014225,2]
[424314942,1780763443000,-516.14280082,0.00014229,2]
[424314933,1780763443000,-150.0,0.00014211,2]
[424314946,1780763443000,-150.0,0.00014237,2]
[424314938,1780763443000,-150.0,0.00014222,2]
[424314960,1780763443000,-516.14280082,0.0001426,2]
[424314962,1780763443000,-200.0,0.00014261,2]
[424314964,1780763443000,-150.0,0.00014263,2]
[424314958,1780763443000,-150.0,0.00014257,2]
[424314948,1780763443000,-150.0,0.00014237,2]
[424314968,1780763443000,-150.0,0.00014272,2]
[424314985,1780763443000,-150.0,0.00014313,2]
[424314997,1780763443000,-516.14280082,0.00014335,2]
[424314983,1780763443000,-516.14280082,0.00014305,2]
[424314977,1780763443000,-150.0,0.00014295,2]
[424314979,1780763443000,-150.0,0.00014296,2]
[424314981,1780763443000,-150.0,0.00014298,2]
[424314995,1780763443000,-150.0,0.00014329,2]
[424314971,1780763443000,-150.0,0.00014276,2]
[424314973,1780763443000,-150.0,0.00014283,2]
[424314969,1780763443000,-516.14280082,0.00014275,2]
[424314966,1780763443000,-150.0,0.00014268,2]
[424314975,1780763443000,-516.14280082,0.0001429,2]
[424315136,1780763444000,-150.0,0.00014573,2]
[424315120,1780763444000,-150.0,0.00014543,2]
[424315122,1780763444000,-516.14280082,0.00014547,2]
[424315124,1780763444000,-150.0,0.00014548,2]
[424315127,1780763444000,-150.0,0.00014558,2]
[424315133,1780763444000,-150.0,0.00014572,2]
[424315116,1780763444000,-150.0,0.00014533,2]
[424315131,1780763444000,-150.0,0.00014571,2]
[424315126,1780763444000,-150.0,0.00014552,2]
[424315118,1780763444000,-150.0,0.00014538,2]
[424315092,1780763444000,-516.14280082,0.00014502,2]
[424315114,1780763444000,-516.14280082,0.00014532,2]
[424315129,1780763444000,-516.14280082,0.00014562,2]
[424315138,1780763444000,-150.0,0.00014573,2]
[424315164,1780763444000,-150.0,0.00014625,2]
[424315144,1780763444000,-150.0,0.00014592,2]
[424315150,1780763444000,-400.0,0.000146,5]
[424315140,1780763444000,-516.14280082,0.00014578,2]
[424315146,1780763444000,-516.14280082,0.00014593,2]
[424315162,1780763444000,-516.14280082,0.00014623,2]
[424315154,1780763444000,-516.14280082,0.00014608,2]
[424315152,1780763444000,-150.0,0.00014604,2]
[424315156,1780763444000,-150.0,0.00014612,2]
[424315158,1780763444000,-150.0,0.00014617,2]
[424315160,1780763444000,-150.0,0.00014619,2]
[424315148,1780763444000,-150.0,0.00014594,2]
[424315166,1780763444000,-1500.0,0.0001463,2]
[424315090,1780763444000,-150.0,0.00014497,2]
[424315142,1780763444000,-150.0,0.00014589,2]
[424315088,1780763444000,-150.0,0.00014493,2]
[424315050,1780763444000,-150.0,0.00014433,2]
[424315110,1780763444000,-150.0,0.00014525,2]
[424315044,1780763444000,-150.0,0.00014418,2]
[424315046,1780763444000,-150.0,0.0001442,2]
[424315052,1780763444000,-150.0,0.00014434,2]
[424315048,1780763444000,-516.14280082,0.00014426,2]
[424315054,1780763444000,-150.0,0.00014436,2]
[424315057,1780763444000,-516.14280082,0.00014441,2]
[424315061,1780763444000,-150.0,0.00014454,2]
[424315179,1780763444000,-150.0,0.00014651,2]
[424315063,1780763444000,-150.0,0.00014456,2]
[424315059,1780763444000,-150.0,0.00014451,2]
[424315065,1780763444000,-516.14280082,0.00014456,2]
[424315071,1780763444000,-516.14280082,0.00014472,2]
[424315069,1780763444000,-150.0,0.0001447,2]
[424315067,1780763444000,-150.0,0.00014466,2]
[424315075,1780763444000,-150.0,0.00014479,2]
[424315073,1780763444000,-150.0,0.00014474,2]
[424315077,1780763444000,-155.4453539,0.00014481,2]
[424315079,1780763444000,-150.0,0.00014482,2]
[424315081,1780763444000,-150.0,0.00014487,2]
[424315083,1780763444000,-150.0,0.00014487,2]
[424315085,1780763444000,-516.14280082,0.00014487,2]
[424315094,1780763444000,-150.0,0.00014502,2]
[424315096,1780763444000,-500.0,0.00014512,2]
[424315098,1780763444000,-500.0,0.00014512,2]
[424315102,1780763444000,-150.0,0.00014512,2]
[424315100,1780763444000,-500.0,0.00014512,2]
[424315104,1780763444000,-150.0,0.00014513,2]
[424315106,1780763444000,-516.14280082,0.00014517,2]
[424315108,1780763444000,-150.0,0.00014521,2]
[424315112,1780763444000,-150.0,0.00014528,2]
[424315168,1780763444000,-150.0,0.00014631,2]
[424315283,1780763444000,-150.0,0.00014848,2]
[424315180,1780763444000,-516.14280082,0.00014653,2]
[424315243,1780763444000,-516.14280082,0.00014774,2]
[424315245,1780763444000,-150.0,0.00014779,2]
[424315247,1780763444000,-150.0,0.0001478,2]
[424315258,1780763444000,-150.0,0.00014802,2]
[424315249,1780763444000,-150.0,0.00014788,2]
[424315251,1780763444000,-150.0,0.00014789,2]
[424315263,1780763444000,-516.14280082,0.00014805,2]
[424315260,1780763444000,-454.3787371,0.00014802,10]
[424315262,1780763444000,-150.0,0.00014803,2]
[424315255,1780763444000,-400.0,0.000148,5]
[424315253,1780763444000,-516.14280082,0.0001479,2]
[424315265,1780763444000,-150.0,0.00014809,2]
[424315267,1780763444000,-150.0,0.00014818,2]
[424315270,1780763444000,-516.14280082,0.0001482,2]
[424315272,1780763444000,-150.0,0.00014825,2]
[424315274,1780763444000,-150.0,0.00014829,2]
[424315277,1780763444000,-150.0,0.00014831,2]
[424315279,1780763444000,-150.0,0.00014833,2]
[424315285,1780763444000,-150.0,0.00014848,2]
[424315281,1780763444000,-516.14280082,0.00014835,2]
[424315290,1780763444000,-516.14280082,0.0001485,2]
[424315288,1780763444000,-150.0,0.00014849,2]
[424315292,1780763444000,-150.0,0.00014864,2]
[424315294,1780763444000,-516.14280082,0.00014865,2]
[424315296,1780763444000,-150.0,0.00014868,2]
[424315298,1780763444000,-150.0,0.00014871,2]
[424315300,1780763444000,-500.0,0.00014877,2]
[424315302,1780763444000,-150.0,0.00014879,2]
[424315176,1780763444000,-150.0,0.0001465,2]
[424315241,1780763444000,-150.0,0.00014772,2]